[Event "Titled Tuesday Blitz June 15 2021"]
[White "Yoo, Christopher Woojin"]
[Black "Kholin, Aleksandr"]
[WhiteFideId "30909694"]
[BlackFideId "14179385"]
[WhiteElo "2009"]
[BlackElo "2491"]
[Result "1/2-1/2"]
[Round "01"]
[TimeControl "180+1"]
[Date "2021.06.15"]
[WhiteClock "0:00:08"]
[BlackClock "0:00:16"]

1. d4 {[%clk 0:02:54]}  Nf6 {[%clk 0:02:59]} 2. Nf3 {[%clk 0:02:52]}  e6 {[%clk 0:02:59]} 3. c4 {[%clk 0:02:51]}  d5 {[%clk 0:02:59]} 4. Nc3 {[%clk 0:02:51]}  Bb4 {[%clk 0:02:59]} 5. Qb3 {[%clk 0:02:50]}  c5 {[%clk 0:02:54]} 6. dxc5 {[%clk 0:02:50]}  Na6 {[%clk 0:02:54]} 7. a3 {[%clk 0:02:48]}  Ba5 {[%clk 0:02:23]} 8. Bg5 {[%clk 0:02:17]}  O-O {[%clk 0:02:21]} 9. Rd1 {[%clk 0:01:38]}  Nxc5 {[%clk 0:02:19]} 10. Qc2 {[%clk 0:01:28]}  Bxc3+ {[%clk 0:02:11]} 11. Qxc3 {[%clk 0:01:27]}  Nce4 {[%clk 0:02:11]} 12. Qe5 {[%clk 0:01:12]}  Qa5+ {[%clk 0:01:56]} 13. Bd2 {[%clk 0:01:11]}  Nxd2 {[%clk 0:01:36]} 14. Nxd2 {[%clk 0:01:12]}  Ne4 {[%clk 0:01:14]} 15. g3 {[%clk 0:01:07]}  Bd7 {[%clk 0:01:10]} 16. Bg2 {[%clk 0:00:58]}  Ba4 {[%clk 0:01:08]} 17. b4 {[%clk 0:00:55]}  Qd8 {[%clk 0:00:46]} 18. Rc1 {[%clk 0:00:54]}  Nxd2 {[%clk 0:00:43]} 19. Kxd2 {[%clk 0:00:55]}  dxc4+ {[%clk 0:00:44]} 20. Ke1 {[%clk 0:00:56]}  Rc8 {[%clk 0:00:35]} 21. Bxb7 {[%clk 0:00:51]}  Rc7 {[%clk 0:00:35]} 22. Be4 {[%clk 0:00:51]}  c3 {[%clk 0:00:34]} 23. Bd3 {[%clk 0:00:42]}  c2 {[%clk 0:00:29]} 24. f3 {[%clk 0:00:38]}  Qc8 {[%clk 0:00:27]} 25. Kf2 {[%clk 0:00:37]}  Rd8 {[%clk 0:00:26]} 26. b5 {[%clk 0:00:32]}  Rd5 {[%clk 0:00:25]} 27. Qe4 {[%clk 0:00:28]}  Bxb5 {[%clk 0:00:24]} 28. Qxh7+ {[%clk 0:00:28]}  Kf8 {[%clk 0:00:24]} 29. Bxb5 {[%clk 0:00:23]}  Rxb5 {[%clk 0:00:23]} 30. Qh8+ {[%clk 0:00:23]}  Ke7 {[%clk 0:00:23]} 31. Qxg7 {[%clk 0:00:24]}  Qd7 {[%clk 0:00:20]} 32. h4 {[%clk 0:00:24]}  Qd2 {[%clk 0:00:19]} 33. h5 {[%clk 0:00:08]}  Rcc5 {[%clk 0:00:17]} 34. h6 {[%clk 0:00:09]}  Re5 {[%clk 0:00:17]} 35. Rhe1 {[%clk 0:00:06]}  Qd4+ {[%clk 0:00:17]} 36. Kg2 {[%clk 0:00:05]}  Rbc5 {[%clk 0:00:15]} 37. Qg8 {[%clk 0:00:02]}  Qd2 {[%clk 0:00:13]} 38. Kf2 {[%clk 0:00:01]}  Qe3+ {[%clk 0:00:13]} 39. Kg2 {[%clk 0:00:01]}  Qd2 {[%clk 0:00:12]} 40. Kf2 {[%clk 0:00:02]}  Rc3 {[%clk 0:00:13]} 41. h7 {[%clk 0:00:01]}  Rxf3+ {[%clk 0:00:12]} 42. Kxf3 {[%clk 0:00:01]}  Qd5+ {[%clk 0:00:11]} 43. Kf2 {[%clk 0:00:02]}  Qd4+ {[%clk 0:00:12]} 44. Kg2 {[%clk 0:00:02]}  Qe4+ {[%clk 0:00:12]} 45. Kg1 {[%clk 0:00:02]}  Qe3+ {[%clk 0:00:12]} 46. Kg2 {[%clk 0:00:02]}  Qe4+ {[%clk 0:00:12]} 47. Kf1 {[%clk 0:00:02]}  Rf5+ {[%clk 0:00:12]} 48. Kg1 {[%clk 0:00:02]}  Qe3+ {[%clk 0:00:12]} 49. Kg2 {[%clk 0:00:02]}  Qe4+ {[%clk 0:00:12]} 50. Kg1 {[%clk 0:00:02]}  Qe3+ {[%clk 0:00:13]} 51. Kg2 {[%clk 0:00:03]}  Rf2+ {[%clk 0:00:13]} 52. Kg1 {[%clk 0:00:01]}  Rxe2+ {[%clk 0:00:11]} 53. Kh1 {[%clk 0:00:01]}  Rxe1+ {[%clk 0:00:11]} 54. Rxe1 {[%clk 0:00:01]}  Qxe1+ {[%clk 0:00:12]} 55. Kg2 {[%clk 0:00:02]}  Qe2+ {[%clk 0:00:12]} 56. Kh3 {[%clk 0:00:02]}  Qh5+ {[%clk 0:00:12]} 57. Kg2 {[%clk 0:00:03]}  c1=Q {[%clk 0:00:12]} 58. h8=Q {[%clk 0:00:03]}  Qxh8 {[%clk 0:00:13]} 59. Qxh8 {[%clk 0:00:03]}  Qd2+ {[%clk 0:00:13]} 60. Kh3 {[%clk 0:00:03]}  Qd6 {[%clk 0:00:12]} 61. Qh4+ {[%clk 0:00:03]}  Kd7 {[%clk 0:00:13]} 62. Qf6 {[%clk 0:00:03]}  Qe7 {[%clk 0:00:11]} 63. Qd4+ {[%clk 0:00:03]}  Ke8 {[%clk 0:00:12]} 64. Qa4+ {[%clk 0:00:02]}  Kf8 {[%clk 0:00:12]} 65. Qf4 {[%clk 0:00:02]}  Kg7 {[%clk 0:00:12]} 66. Qd4+ {[%clk 0:00:02]}  f6 {[%clk 0:00:10]} 67. Qg4+ {[%clk 0:00:02]}  Kf7 {[%clk 0:00:11]} 68. Qh5+ {[%clk 0:00:03]}  Kf8 {[%clk 0:00:12]} 69. Qh8+ {[%clk 0:00:03]}  Kf7 {[%clk 0:00:12]} 70. Qh7+ {[%clk 0:00:03]}  Ke8 {[%clk 0:00:13]} 71. Qg8+ {[%clk 0:00:03]}  Kd7 {[%clk 0:00:12]} 72. Qa8 {[%clk 0:00:03]}  Qc5 {[%clk 0:00:11]} 73. Qb7+ {[%clk 0:00:03]}  Kd6 {[%clk 0:00:11]} 74. Qb8+ {[%clk 0:00:04]}  Qc7 {[%clk 0:00:10]} 75. Qf8+ {[%clk 0:00:04]}  Qe7 {[%clk 0:00:10]} 76. Qb8+ {[%clk 0:00:04]}  Qc7 {[%clk 0:00:10]} 77. Qf8+ {[%clk 0:00:04]}  Kd5 {[%clk 0:00:10]} 78. Qxf6 {[%clk 0:00:03]}  Qe5 {[%clk 0:00:11]} 79. Qxe5+ {[%clk 0:00:01]}  Kxe5 {[%clk 0:00:11]} 80. Kg2 {[%clk 0:00:02]}  Ke4 {[%clk 0:00:11]} 81. Kf2 {[%clk 0:00:02]}  e5 {[%clk 0:00:11]} 82. Ke2 {[%clk 0:00:02]}  a5 {[%clk 0:00:10]} 83. a4 {[%clk 0:00:02]}  Kd4 {[%clk 0:00:09]} 84. Kd2 {[%clk 0:00:03]}  e4 {[%clk 0:00:09]} 85. Ke2 {[%clk 0:00:03]}  Kd5 {[%clk 0:00:10]} 86. Ke3 {[%clk 0:00:03]}  Ke5 {[%clk 0:00:10]} 87. g4 {[%clk 0:00:03]}  Kd5 {[%clk 0:00:11]} 88. g5 {[%clk 0:00:02]}  Ke5 {[%clk 0:00:12]} 89. g6 {[%clk 0:00:02]}  Kf6 {[%clk 0:00:13]} 90. Kxe4 {[%clk 0:00:03]}  Kxg6 {[%clk 0:00:13]} 91. Kd5 {[%clk 0:00:04]}  Kf5 {[%clk 0:00:13]} 92. Kc5 {[%clk 0:00:05]}  Ke5 {[%clk 0:00:13]} 93. Kb5 {[%clk 0:00:05]}  Kd5 {[%clk 0:00:14]} 94. Kxa5 {[%clk 0:00:06]}  Kc5 {[%clk 0:00:15]} 95. Ka6 {[%clk 0:00:07]}  Kc6 {[%clk 0:00:15]} 96. a5 {[%clk 0:00:07]}  Kc7 {[%clk 0:00:15]} 97. Ka7 {[%clk 0:00:08]}  Kc8 {[%clk 0:00:15]} 98. a6 {[%clk 0:00:07]}  Kc7 {[%clk 0:00:15]} 99. Ka8 {[%clk 0:00:08]}  Kc8 {[%clk 0:00:15]} 100. a7 {[%clk 0:00:08]}  Kc7 {[%clk 0:00:16]} 1/2-1/2


[Site "https://www.chess.com"]

[Event "Titled Tuesday Blitz June 15 2021"]
[White "Abrashkin, Boris"]
[Black "Jobava, Baadur"]
[WhiteFideId "4120582"]
[BlackFideId "13601520"]
[WhiteElo "2601"]
[BlackElo "2748"]
[Result "0-1"]
[Round "02"]
[TimeControl "180+1"]
[Date "2021.06.15"]
[WhiteClock "0:00:02"]
[BlackClock "0:01:03"]

1. d4 {[%clk 0:03:00]}  d5 {[%clk 0:02:59]} 2. c4 {[%clk 0:03:01]}  c6 {[%clk 0:03:00]} 3. Nc3 {[%clk 0:03:01]}  Nf6 {[%clk 0:02:59]} 4. e3 {[%clk 0:03:02]}  g6 {[%clk 0:02:58]} 5. Nf3 {[%clk 0:03:01]}  Bg7 {[%clk 0:02:58]} 6. Bd3 {[%clk 0:03:01]}  O-O {[%clk 0:02:58]} 7. O-O {[%clk 0:03:02]}  Bf5 {[%clk 0:02:57]} 8. Bxf5 {[%clk 0:02:49]}  gxf5 {[%clk 0:02:58]} 9. cxd5 {[%clk 0:02:49]}  cxd5 {[%clk 0:02:59]} 10. Qb3 {[%clk 0:02:47]}  b6 {[%clk 0:02:59]} 11. Ne5 {[%clk 0:02:45]}  e6 {[%clk 0:02:59]} 12. Bd2 {[%clk 0:02:33]}  Nbd7 {[%clk 0:02:59]} 13. f4 {[%clk 0:02:21]}  Rc8 {[%clk 0:02:50]} 14. Rac1 {[%clk 0:02:14]}  Nxe5 {[%clk 0:02:32]} 15. fxe5 {[%clk 0:02:14]}  Ne4 {[%clk 0:02:32]} 16. Nxe4 {[%clk 0:02:13]}  dxe4 {[%clk 0:02:30]} 17. Rxc8 {[%clk 0:01:54]}  Qxc8 {[%clk 0:02:30]} 18. Rc1 {[%clk 0:01:55]}  Qd7 {[%clk 0:02:27]} 19. Qc4 {[%clk 0:01:54]}  Bxe5 {[%clk 0:02:24]} 20. Be1 {[%clk 0:01:06]}  Bd6 {[%clk 0:02:20]} 21. Bh4 {[%clk 0:01:04]}  Be7 {[%clk 0:02:01]} 22. Bg3 {[%clk 0:01:03]}  Rd8 {[%clk 0:01:57]} 23. Qa6 {[%clk 0:00:45]}  Bd6 {[%clk 0:01:51]} 24. Bh4 {[%clk 0:00:44]}  Re8 {[%clk 0:01:46]} 25. Bf6 {[%clk 0:00:28]}  h6 {[%clk 0:01:45]} 26. Qc4 {[%clk 0:00:22]}  Kh7 {[%clk 0:01:35]} 27. g3 {[%clk 0:00:17]}  Kg6 {[%clk 0:01:34]} 28. Bh4 {[%clk 0:00:08]}  h5 {[%clk 0:01:33]} 29. Kg2 {[%clk 0:00:04]}  f6 {[%clk 0:01:33]} 30. h3 {[%clk 0:00:02]}  Re7 {[%clk 0:01:29]} 31. d5 {[%clk 0:00:02]}  Be5 {[%clk 0:01:27]} 32. dxe6 {[%clk 0:00:02]}  Qd2+ {[%clk 0:01:23]} 33. Kh1 {[%clk 0:00:02]}  Rc7 {[%clk 0:01:22]} 34. Qxc7 {[%clk 0:00:01]}  Bxc7 {[%clk 0:01:23]} 35. Rxc7 {[%clk 0:00:02]}  Qd1+ {[%clk 0:01:11]} 36. Kh2 {[%clk 0:00:03]}  Qe2+ {[%clk 0:01:11]} 37. Kh1 {[%clk 0:00:03]}  Qxb2 {[%clk 0:01:03]} 38. e7 {[%clk 0:00:02]}  Kf7 {[%clk 0:01:03]} 0-1


[Site "https://www.chess.com"]

[Event "Titled Tuesday Blitz June 15 2021"]
[White "Andrews, Todd"]
[Black "Weetik, Vjacheslav"]
[WhiteFideId "2012456"]
[BlackFideId "4153472"]
[WhiteElo "2397"]
[BlackElo "2469"]
[Result "1-0"]
[Round "02"]
[TimeControl "180+1"]
[Date "2021.06.15"]
[WhiteClock "0:00:21"]
[BlackClock "0:00:05"]

1. e4 {[%clk 0:02:59]}  d5 {[%clk 0:02:59]} 2. exd5 {[%clk 0:02:59]}  Qxd5 {[%clk 0:02:59]} 3. Nc3 {[%clk 0:02:59]}  Qd6 {[%clk 0:03:00]} 4. h3 {[%clk 0:02:58]}  Nf6 {[%clk 0:02:59]} 5. Nf3 {[%clk 0:02:57]}  a6 {[%clk 0:02:54]} 6. d4 {[%clk 0:02:57]}  b5 {[%clk 0:02:51]} 7. Bd3 {[%clk 0:02:55]}  Bb7 {[%clk 0:02:47]} 8. Qe2 {[%clk 0:02:49]}  Nc6 {[%clk 0:02:34]} 9. Ne4 {[%clk 0:02:37]}  Nxe4 {[%clk 0:02:20]} 10. Bxe4 {[%clk 0:02:37]}  e6 {[%clk 0:01:50]} 11. c3 {[%clk 0:02:36]}  Be7 {[%clk 0:01:48]} 12. O-O {[%clk 0:02:25]}  O-O {[%clk 0:01:41]} 13. Bd2 {[%clk 0:01:58]}  Na5 {[%clk 0:01:24]} 14. Rad1 {[%clk 0:01:38]}  Bxe4 {[%clk 0:01:17]} 15. Qxe4 {[%clk 0:01:38]}  Qd5 {[%clk 0:01:02]} 16. Qg4 {[%clk 0:01:20]}  Rfe8 {[%clk 0:00:42]} 17. Rfe1 {[%clk 0:01:13]}  Nc4 {[%clk 0:00:30]} 18. Bh6 {[%clk 0:01:04]}  Bf8 {[%clk 0:00:26]} 19. b3 {[%clk 0:01:01]}  Nd6 {[%clk 0:00:13]} 20. Re5 {[%clk 0:01:00]}  Qc6 {[%clk 0:00:12]} 21. Rd3 {[%clk 0:00:43]}  f5 {[%clk 0:00:09]} 22. Qh5 {[%clk 0:00:27]}  gxh6 {[%clk 0:00:08]} 23. Nh4 {[%clk 0:00:27]}  Bg7 {[%clk 0:00:04]} 24. Rg3 {[%clk 0:00:27]}  Re7 {[%clk 0:00:05]} 25. Qxh6 {[%clk 0:00:26]}  Ne4 {[%clk 0:00:05]} 26. Rxg7+ {[%clk 0:00:21]}  Rxg7 {[%clk 0:00:05]} 27. Nxf5 {[%clk 0:00:21]} 1-0


[Site "https://www.chess.com"]

[Event "Titled Tuesday Blitz June 15 2021"]
[White "Annaberdiyev, Babageldi"]
[Black "Siniauski, Artsiom"]
[WhiteFideId "14000385"]
[BlackFideId "13512269"]
[WhiteElo "2332"]
[BlackElo "2212"]
[Result "0-1"]
[Round "02"]
[TimeControl "180+1"]
[Date "2021.06.15"]
[WhiteClock "0:00:10"]
[BlackClock "0:00:06"]

1. e4 {[%clk 0:03:00]}  e6 {[%clk 0:02:59]} 2. d4 {[%clk 0:03:00]}  d5 {[%clk 0:02:59]} 3. e5 {[%clk 0:03:00]}  c5 {[%clk 0:03:00]} 4. c3 {[%clk 0:03:00]}  Qb6 {[%clk 0:02:59]} 5. Nf3 {[%clk 0:03:00]}  Bd7 {[%clk 0:02:59]} 6. Be2 {[%clk 0:02:57]}  Bb5 {[%clk 0:02:59]} 7. O-O {[%clk 0:02:57]}  Bxe2 {[%clk 0:02:59]} 8. Qxe2 {[%clk 0:02:58]}  Qa6 {[%clk 0:02:59]} 9. c4 {[%clk 0:02:58]}  Qxc4 {[%clk 0:02:58]} 10. Qxc4 {[%clk 0:02:57]}  dxc4 {[%clk 0:02:59]} 11. Na3 {[%clk 0:02:57]}  Nc6 {[%clk 0:02:58]} 12. dxc5 {[%clk 0:02:49]}  Bxc5 {[%clk 0:02:55]} 13. Nxc4 {[%clk 0:02:49]}  Nge7 {[%clk 0:02:54]} 14. Be3 {[%clk 0:02:46]}  Bxe3 {[%clk 0:02:43]} 15. Nd6+ {[%clk 0:02:46]}  Kd7 {[%clk 0:02:41]} 16. fxe3 {[%clk 0:02:43]}  f6 {[%clk 0:02:38]} 17. Rad1 {[%clk 0:02:28]}  Kc7 {[%clk 0:02:36]} 18. exf6 {[%clk 0:02:24]}  gxf6 {[%clk 0:02:36]} 19. Nb5+ {[%clk 0:02:17]}  Kb6 {[%clk 0:02:35]} 20. Nbd4 {[%clk 0:02:18]}  e5 {[%clk 0:02:25]} 21. Ne6 {[%clk 0:02:12]}  Rhg8 {[%clk 0:02:17]} 22. Nd2 {[%clk 0:02:10]}  f5 {[%clk 0:02:12]} 23. Nc4+ {[%clk 0:02:06]}  Kb5 {[%clk 0:02:12]} 24. b3 {[%clk 0:02:01]}  Kb4 {[%clk 0:02:08]} 25. Rd7 {[%clk 0:01:43]}  b5 {[%clk 0:02:02]} 26. Nxe5 {[%clk 0:01:12]}  Nxe5 {[%clk 0:02:02]} 27. Rxe7 {[%clk 0:01:12]}  Rge8 {[%clk 0:01:57]} 28. Rxe8 {[%clk 0:01:12]}  Rxe8 {[%clk 0:01:58]} 29. Nd4 {[%clk 0:01:13]}  Nd3 {[%clk 0:01:44]} 30. Rxf5 {[%clk 0:01:08]}  a6 {[%clk 0:01:43]} 31. Rf6 {[%clk 0:01:08]}  Kc3 {[%clk 0:01:31]} 32. Rxa6 {[%clk 0:01:02]}  Rxe3 {[%clk 0:01:29]} 33. Nf3 {[%clk 0:00:52]}  Re2 {[%clk 0:01:26]} 34. h3 {[%clk 0:00:43]}  Nf4 {[%clk 0:01:21]} 35. Nh4 {[%clk 0:00:38]}  b4 {[%clk 0:01:17]} 36. a3 {[%clk 0:00:38]}  Re1+ {[%clk 0:00:48]} 37. Kh2 {[%clk 0:00:38]}  Kxb3 {[%clk 0:00:48]} 38. axb4 {[%clk 0:00:36]}  Kxb4 {[%clk 0:00:49]} 39. Rf6 {[%clk 0:00:35]}  Nd5 {[%clk 0:00:46]} 40. Rh6 {[%clk 0:00:31]}  Re7 {[%clk 0:00:45]} 41. Nf3 {[%clk 0:00:31]}  Rg7 {[%clk 0:00:40]} 42. h4 {[%clk 0:00:29]}  Ne3 {[%clk 0:00:37]} 43. Rb6+ {[%clk 0:00:20]}  Kc5 {[%clk 0:00:36]} 44. Rb2 {[%clk 0:00:20]}  Kd5 {[%clk 0:00:34]} 45. g3 {[%clk 0:00:15]}  Ke4 {[%clk 0:00:29]} 46. Ng5+ {[%clk 0:00:15]}  Kf5 {[%clk 0:00:29]} 47. Rg2 {[%clk 0:00:13]}  Nxg2 {[%clk 0:00:28]} 48. Kxg2 {[%clk 0:00:14]}  Kg4 {[%clk 0:00:27]} 49. Nf3 {[%clk 0:00:14]}  Ra7 {[%clk 0:00:23]} 50. Nh2+ {[%clk 0:00:14]}  Kf5 {[%clk 0:00:23]} 51. Kh3 {[%clk 0:00:15]}  Ra2 {[%clk 0:00:22]} 52. Ng4 {[%clk 0:00:14]}  Ra3 {[%clk 0:00:20]} 53. Nh6+ {[%clk 0:00:13]}  Kg6 {[%clk 0:00:19]} 54. Ng4 {[%clk 0:00:14]}  h5 {[%clk 0:00:18]} 55. Ne5+ {[%clk 0:00:14]}  Kf5 {[%clk 0:00:18]} 56. Nf7 {[%clk 0:00:15]}  Ke4 {[%clk 0:00:17]} 57. Ng5+ {[%clk 0:00:16]}  Ke3 {[%clk 0:00:15]} 58. Ne6 {[%clk 0:00:16]}  Kf2 {[%clk 0:00:14]} 59. Ng5 {[%clk 0:00:16]}  Rxg3+ {[%clk 0:00:14]} 60. Kh2 {[%clk 0:00:16]}  Ra3 {[%clk 0:00:07]} 61. Ne6 {[%clk 0:00:14]}  Kf3 {[%clk 0:00:07]} 62. Kh3 {[%clk 0:00:09]}  Ke4+ {[%clk 0:00:07]} 63. Kg2 {[%clk 0:00:09]}  Kf5 {[%clk 0:00:08]} 64. Ng5 {[%clk 0:00:09]}  Kg4 {[%clk 0:00:08]} 65. Ne6 {[%clk 0:00:10]}  Kxh4 {[%clk 0:00:07]} 66. Kh2 {[%clk 0:00:10]}  Ra2+ {[%clk 0:00:06]} 0-1


[Site "https://www.chess.com"]

[Event "Titled Tuesday Blitz June 15 2021"]
[White "Assaubayeva, Bibisara"]
[Black "Villegas, Pierre"]
[WhiteFideId "13708694"]
[BlackFideId "654183"]
[WhiteElo "2232"]
[BlackElo "2411"]
[Result "1-0"]
[Round "02"]
[TimeControl "180+1"]
[Date "2021.06.15"]
[WhiteClock "0:00:48"]
[BlackClock "0:00:25"]

1. d4 {[%clk 0:03:00]}  d5 {[%clk 0:02:59]} 2. c4 {[%clk 0:03:01]}  e6 {[%clk 0:02:59]} 3. Nc3 {[%clk 0:03:01]}  a6 {[%clk 0:03:00]} 4. Nf3 {[%clk 0:02:58]}  Nf6 {[%clk 0:02:59]} 5. cxd5 {[%clk 0:02:56]}  exd5 {[%clk 0:03:00]} 6. Bg5 {[%clk 0:02:55]}  Be6 {[%clk 0:03:00]} 7. e3 {[%clk 0:02:55]}  Nbd7 {[%clk 0:03:01]} 8. Bd3 {[%clk 0:02:56]}  Bd6 {[%clk 0:03:01]} 9. Qc2 {[%clk 0:02:56]}  c6 {[%clk 0:02:51]} 10. O-O {[%clk 0:02:53]}  Qc7 {[%clk 0:02:51]} 11. Rab1 {[%clk 0:02:37]}  O-O {[%clk 0:02:40]} 12. b4 {[%clk 0:02:36]}  b5 {[%clk 0:02:19]} 13. Rfc1 {[%clk 0:02:25]}  Bg4 {[%clk 0:02:05]} 14. Ne5 {[%clk 0:02:14]}  h6 {[%clk 0:01:22]} 15. Bxf6 {[%clk 0:01:58]}  Nxf6 {[%clk 0:01:22]} 16. h3 {[%clk 0:01:39]}  Be6 {[%clk 0:01:02]} 17. f4 {[%clk 0:01:35]}  Rac8 {[%clk 0:01:01]} 18. Ne2 {[%clk 0:01:22]}  Ne4 {[%clk 0:00:48]} 19. Bxe4 {[%clk 0:01:15]}  dxe4 {[%clk 0:00:48]} 20. Qxe4 {[%clk 0:01:14]}  Bxa2 {[%clk 0:00:42]} 21. Rb2 {[%clk 0:01:04]}  Bd5 {[%clk 0:00:41]} 22. Qd3 {[%clk 0:01:04]}  f6 {[%clk 0:00:33]} 23. Nxc6 {[%clk 0:00:50]}  Bxc6 {[%clk 0:00:28]} 24. d5 {[%clk 0:00:50]}  Qb6 {[%clk 0:00:24]} 25. dxc6 {[%clk 0:00:48]}  Rxc6 {[%clk 0:00:25]} 26. Qd5+ {[%clk 0:00:48]} 1-0


[Site "https://www.chess.com"]

[Event "Titled Tuesday Blitz June 15 2021"]
[White "Balakrishnan, Praveen"]
[Black "Skliarov, Viktor"]
[WhiteFideId "2064871"]
[BlackFideId "14106736"]
[WhiteElo "2237"]
[BlackElo "2344"]
[Result "1-0"]
[Round "02"]
[TimeControl "180+1"]
[Date "2021.06.15"]
[WhiteClock "0:00:10"]
[BlackClock "0:00:03"]

1. Nf3 {[%clk 0:03:00]}  g6 {[%clk 0:02:59]} 2. c4 {[%clk 0:02:57]}  Bg7 {[%clk 0:02:59]} 3. Nc3 {[%clk 0:02:56]}  Nf6 {[%clk 0:03:00]} 4. e4 {[%clk 0:02:55]}  d6 {[%clk 0:02:59]} 5. d3 {[%clk 0:02:49]}  c5 {[%clk 0:02:57]} 6. Be2 {[%clk 0:02:42]}  O-O {[%clk 0:02:57]} 7. O-O {[%clk 0:02:41]}  Nc6 {[%clk 0:02:57]} 8. h3 {[%clk 0:02:40]}  Rb8 {[%clk 0:02:56]} 9. Be3 {[%clk 0:02:37]}  a6 {[%clk 0:02:51]} 10. d4 {[%clk 0:02:33]}  cxd4 {[%clk 0:02:49]} 11. Nxd4 {[%clk 0:02:33]}  Nxd4 {[%clk 0:02:46]} 12. Bxd4 {[%clk 0:02:33]}  b5 {[%clk 0:02:19]} 13. cxb5 {[%clk 0:02:22]}  axb5 {[%clk 0:02:18]} 14. e5 {[%clk 0:02:18]}  Ne8 {[%clk 0:02:08]} 15. Nxb5 {[%clk 0:02:17]}  dxe5 {[%clk 0:02:01]} 16. Bc5 {[%clk 0:01:37]}  Bd7 {[%clk 0:01:35]} 17. a4 {[%clk 0:01:33]}  e4 {[%clk 0:01:35]} 18. Qc2 {[%clk 0:01:27]}  Bxb5 {[%clk 0:01:25]} 19. axb5 {[%clk 0:01:21]}  Nd6 {[%clk 0:01:23]} 20. b6 {[%clk 0:01:15]}  Rxb6 {[%clk 0:01:20]} 21. Bxb6 {[%clk 0:01:14]}  Qxb6 {[%clk 0:01:21]} 22. Rab1 {[%clk 0:01:09]}  Rc8 {[%clk 0:01:04]} 23. Qd2 {[%clk 0:01:08]}  e3 {[%clk 0:01:03]} 24. fxe3 {[%clk 0:00:57]}  Ne4 {[%clk 0:00:41]} 25. Qd3 {[%clk 0:00:48]}  Ng3 {[%clk 0:00:41]} 26. Rf3 {[%clk 0:00:45]}  Nxe2+ {[%clk 0:00:37]} 27. Qxe2 {[%clk 0:00:46]}  Qb3 {[%clk 0:00:37]} 28. e4 {[%clk 0:00:43]}  Qb6+ {[%clk 0:00:34]} 29. Kh1 {[%clk 0:00:42]}  h5 {[%clk 0:00:28]} 30. b4 {[%clk 0:00:42]}  Bd4 {[%clk 0:00:26]} 31. b5 {[%clk 0:00:41]}  e5 {[%clk 0:00:26]} 32. Qa2 {[%clk 0:00:40]}  Rc7 {[%clk 0:00:26]} 33. Rbf1 {[%clk 0:00:37]}  Qb7 {[%clk 0:00:15]} 34. Qb3 {[%clk 0:00:27]}  Kg7 {[%clk 0:00:15]} 35. Rf6 {[%clk 0:00:25]}  Re7 {[%clk 0:00:14]} 36. b6 {[%clk 0:00:22]}  Bc5 {[%clk 0:00:13]} 37. Qb5 {[%clk 0:00:18]}  Bd4 {[%clk 0:00:13]} 38. Rc6 {[%clk 0:00:19]}  Rd7 {[%clk 0:00:13]} 39. Rfc1 {[%clk 0:00:18]}  Rd8 {[%clk 0:00:09]} 40. Qb3 {[%clk 0:00:17]}  Rf8 {[%clk 0:00:08]} 41. Qd5 {[%clk 0:00:16]}  Qa6 {[%clk 0:00:08]} 42. b7 {[%clk 0:00:13]}  Qe2 {[%clk 0:00:04]} 43. Rc8 {[%clk 0:00:11]}  Be3 {[%clk 0:00:03]} 44. Rxf8 {[%clk 0:00:10]} 1-0


[Site "https://www.chess.com"]

[Event "Titled Tuesday Blitz June 15 2021"]
[White "Bazeev, German"]
[Black "Willychess95"]
[WhiteFideId "24119350"]
[WhiteElo "2462"]
[BlackElo "2560"]
[Result "0-1"]
[Round "02"]
[TimeControl "180+1"]
[Date "2021.06.15"]
[WhiteClock "0:00:07"]
[BlackClock "0:00:33"]

1. d4 {[%clk 0:03:00]}  Nf6 {[%clk 0:02:57]} 2. Nf3 {[%clk 0:02:59]}  e6 {[%clk 0:02:57]} 3. c4 {[%clk 0:02:59]}  Bb4+ {[%clk 0:02:56]} 4. Bd2 {[%clk 0:02:58]}  a5 {[%clk 0:02:56]} 5. g3 {[%clk 0:02:58]}  O-O {[%clk 0:02:56]} 6. Bg2 {[%clk 0:02:58]}  d5 {[%clk 0:02:57]} 7. cxd5 {[%clk 0:02:55]}  exd5 {[%clk 0:02:55]} 8. O-O {[%clk 0:02:55]}  c6 {[%clk 0:02:51]} 9. Bf4 {[%clk 0:02:51]}  Bf5 {[%clk 0:02:45]} 10. Qb3 {[%clk 0:02:41]}  Qc8 {[%clk 0:02:19]} 11. Nc3 {[%clk 0:02:34]}  Re8 {[%clk 0:02:15]} 12. Bxb8 {[%clk 0:02:14]}  Rxb8 {[%clk 0:02:11]} 13. e3 {[%clk 0:02:14]}  Bd6 {[%clk 0:02:04]} 14. Rac1 {[%clk 0:02:11]}  Qd7 {[%clk 0:01:49]} 15. Na4 {[%clk 0:02:10]}  Ne4 {[%clk 0:01:38]} 16. Qd1 {[%clk 0:01:12]}  h6 {[%clk 0:01:21]} 17. Nd2 {[%clk 0:01:05]}  Nxd2 {[%clk 0:01:17]} 18. Qxd2 {[%clk 0:01:06]}  b6 {[%clk 0:01:07]} 19. Nc3 {[%clk 0:01:02]}  h5 {[%clk 0:01:03]} 20. Rfe1 {[%clk 0:01:01]}  h4 {[%clk 0:01:00]} 21. e4 {[%clk 0:01:01]}  dxe4 {[%clk 0:00:56]} 22. Bxe4 {[%clk 0:00:40]}  h3 {[%clk 0:00:54]} 23. Qg5 {[%clk 0:00:35]}  Bxe4 {[%clk 0:00:41]} 24. Nxe4 {[%clk 0:00:34]}  Be7 {[%clk 0:00:41]} 25. Qf4 {[%clk 0:00:15]}  Qd5 {[%clk 0:00:37]} 26. a3 {[%clk 0:00:07]}  f5 {[%clk 0:00:33]} 0-1


[Site "https://www.chess.com"]

[Event "Titled Tuesday Blitz June 15 2021"]
[White "Brunner, Nicolas"]
[Black "Mekhitarian, Krikor Sevag"]
[WhiteFideId "620246"]
[BlackFideId "2107660"]
[WhiteElo "2372"]
[BlackElo "2598"]
[Result "0-1"]
[Round "02"]
[TimeControl "180+1"]
[Date "2021.06.15"]
[WhiteClock "0:00:02"]
[BlackClock "0:00:15"]

1. d4 {[%clk 0:03:00]}  Nf6 {[%clk 0:02:59]} 2. c4 {[%clk 0:03:00]}  e6 {[%clk 0:02:55]} 3. g3 {[%clk 0:02:59]}  d5 {[%clk 0:02:44]} 4. Nf3 {[%clk 0:02:57]}  h6 {[%clk 0:02:43]} 5. Bg2 {[%clk 0:02:56]}  Bd6 {[%clk 0:02:43]} 6. O-O {[%clk 0:02:52]}  O-O {[%clk 0:02:43]} 7. Nc3 {[%clk 0:02:42]}  b6 {[%clk 0:02:36]} 8. Nd2 {[%clk 0:02:29]}  Bb7 {[%clk 0:02:23]} 9. e4 {[%clk 0:02:28]}  dxe4 {[%clk 0:02:00]} 10. Ndxe4 {[%clk 0:02:27]}  Nc6 {[%clk 0:02:00]} 11. Nxd6 {[%clk 0:02:22]}  Qxd6 {[%clk 0:02:00]} 12. Bf4 {[%clk 0:02:21]}  Qd7 {[%clk 0:02:00]} 13. d5 {[%clk 0:02:09]}  exd5 {[%clk 0:01:53]} 14. Nxd5 {[%clk 0:02:08]}  Nxd5 {[%clk 0:01:50]} 15. Qxd5 {[%clk 0:02:07]}  Rad8 {[%clk 0:01:42]} 16. Qxd7 {[%clk 0:01:57]}  Rxd7 {[%clk 0:01:43]} 17. Rad1 {[%clk 0:01:55]}  Rfd8 {[%clk 0:01:38]} 18. Rxd7 {[%clk 0:01:37]}  Rxd7 {[%clk 0:01:39]} 19. Re1 {[%clk 0:01:29]}  Kf8 {[%clk 0:00:43]} 20. Bh3 {[%clk 0:01:12]}  Rd4 {[%clk 0:00:43]} 21. b3 {[%clk 0:00:47]}  Nb4 {[%clk 0:00:41]} 22. Bxc7 {[%clk 0:00:41]}  Nxa2 {[%clk 0:00:41]} 23. Bf5 {[%clk 0:00:13]}  g6 {[%clk 0:00:18]} 24. Be5 {[%clk 0:00:13]}  Rd8 {[%clk 0:00:16]} 25. Bb1 {[%clk 0:00:11]}  Nb4 {[%clk 0:00:16]} 26. Bc7 {[%clk 0:00:07]}  Rd7 {[%clk 0:00:15]} 27. Bf4 {[%clk 0:00:07]}  g5 {[%clk 0:00:15]} 28. Be5 {[%clk 0:00:05]}  Nc6 {[%clk 0:00:13]} 29. Bb2 {[%clk 0:00:05]}  Nd4 {[%clk 0:00:13]} 30. Bxd4 {[%clk 0:00:03]}  Rxd4 {[%clk 0:00:14]} 31. f3 {[%clk 0:00:02]}  Bxf3 {[%clk 0:00:13]} 32. Kf2 {[%clk 0:00:03]}  g4 {[%clk 0:00:14]} 33. Re3 {[%clk 0:00:02]}  Rd2+ {[%clk 0:00:14]} 34. Ke1 {[%clk 0:00:03]}  Rd1+ {[%clk 0:00:14]} 35. Kf2 {[%clk 0:00:02]}  Rxb1 {[%clk 0:00:15]} 0-1


[Site "https://www.chess.com"]